bitfinex/quotes_ETHUSD_20241124
["timestamp","ask_amount","ask_price","bid_price","bid_amount"]
[1732451692859,9.51024,3320.0,3319.1,3.01284]
[1732451693182,9.51024,3320.0,3318.8,3.01312]
[1732451693183,9.51024,3320.0,3318.6,3.01327]
[1732451693474,0.7584,3319.6,3318.1,3.04388825]
[1732451693677,3.01283,3319.2,3318.1,3.04381825]
[1732451693831,3.01283,3319.2,3318.4,1.204197]
[1732451693832,6.4957,3319.1,3318.4,1.204197]
[1732451694027,6.4957,3319.1,3318.1,3.01375]
[1732451694235,6.4957,3319.1,3318.2,3.01367]
[1732451694433,6.4957,3319.1,3317.1,3.80017]
[1732451694434,3.01313,3318.8,3318.0,1.20435]
[1732451694631,5.7373,3318.8,3317.9,3.01393]
[1732451694881,5.7373,3318.8,3317.3,3.01446]
[1732451695043,5.7373,3318.8,3318.0,4.21813]
[1732451695248,5.7373,3318.8,3317.8,3.01402]
[1732451695249,8.75043,3318.8,3317.8,3.01402]
[1732451695452,8.75043,3318.8,3317.6,3.0142]
[1732451695771,8.75043,3318.8,3317.9,3.01393]
[1732451695979,5.7373,3318.8,3317.7,0.03013918]
[1732451696274,5.7373,3318.8,3318.2,3.01364]
[1732451696571,5.7373,3318.8,3318.2,3.01367]
[1732451696876,5.7373,3318.8,3318.0,3.01384]
[1732451697184,5.7373,3318.8,3317.6,3.04432377]
[1732451697337,5.7373,3318.8,3318.4,3.01347]
[1732451697536,5.7373,3318.8,3318.7,3.01822]
[1732451697851,2.72416,3318.8,3318.7,7.649544]
[1732451698095,2.72416,3318.8,3318.7,7.099544]
[1732451698239,2.72416,3318.8,3318.7,7.649544]
[1732451698240,1.21759,3318.8,3318.7,7.649544]
[1732451698557,1e-05,3318.8,3318.7,7.649544]
[1732451698939,0.7584,3320.3,3319.7,3.01226]
[1732451699369,0.7584,3320.3,3319.8,3.01214]
[1732451699739,0.7584,3320.3,3319.2,0.30430214]
[1732451699933,0.7584,3320.3,3319.2,0.33442349]
[1732451700133,0.7584,3320.9,3320.1,3.01193]
[1732451700363,0.7584,3320.9,3320.6,3.01142]
[1732451700572,0.7584,3320.9,3319.5,3.7805]
[1732451700573,0.7584,3320.9,3320.1,3.01187]
[1732451700776,3.76965,3320.9,3319.5,3.79295]
[1732451700959,3.76965,3320.9,3319.5,3.01245]
[1732451700960,3.0117,3320.4,3319.5,3.01245]
[1732451701164,8.8537545,3320.8,3319.3,3.01262]
[1732451701457,8.8537545,3320.8,3319.1,3.01286]
[1732451701458,3.01168,3320.4,3318.7,0.004002]
[1732451701682,0.7584,3320.5,3318.7,0.004002]
[1732451701977,3.01262,3319.4,3318.7,0.004002]
[1732451702182,0.7584,3319.5,3318.7,0.004002]
[1732451702183,3.01274,3319.3,3318.7,0.004002]
[1732451702349,3.01278,3319.2,3318.7,0.004002]
[1732451702556,0.7145,3319.5,3318.7,0.004002]
[1732451702735,3.01304,3318.9,3318.7,0.004002]
[1732451703073,3.01259,3319.4,3318.7,0.004002]
[1732451703232,3.60869093,3319.8,3318.7,0.004002]
[1732451703233,3.013,3319.0,3318.7,0.004002]
[1732451703438,11.8661545,3319.7,3318.7,0.004002]
[1732451703439,3.01261,3319.4,3318.7,0.004002]
[1732451703638,3.01241,3319.6,3318.7,3.017202]
[1732451703937,39.0,3320.1,3319.4,3.01254]
[1732451704177,3.0,3320.5,3319.2,3.01276]
[1732451704369,3.0,3320.5,3319.3,3.01265]
[1732451704370,3.01178,3320.3,3319.3,3.01265]
[1732451704685,9.03639,3320.2,3319.1,3.01279]
[1732451704863,5.9856,3320.2,3319.9,3.01213]
[1732451705036,5.9856,3320.2,3319.9,3.00688925]
[1732451705241,5.9856,3320.2,3319.4,0.7992]
[1732451705242,5.9856,3320.2,3320.0,3.01201]
[1732451705449,5.9856,3320.2,3319.4,0.7992]
[1732451705875,5.9856,3320.2,3320.1,3.01195]
[1732451706286,5.9856,3320.2,3319.4,3.01252]
[1732451706593,0.7541,3320.1,3319.4,3.01252]
[1732451706797,0.7541,3320.1,3318.7,0.004002]
[1732451706999,3.01246,3319.6,3318.7,0.004002]
[1732451707146,6.7397,3319.5,3318.7,0.004002]
[1732451707352,3.01272,3319.3,3318.7,0.004002]
[1732451707747,8.99839,3319.2,3318.7,0.004002]
[1732451707974,3.01286,3319.1,3318.7,0.004002]
[1732451708182,5.9856,3319.0,3318.7,0.004002]
[1732451708348,3.76723,3318.8,3318.7,0.004002]
[1732451708549,9.75283,3318.8,3318.7,0.004002]
[1732451708849,6.7397,3318.8,3318.7,0.004002]
[1732451709573,9.75283,3318.8,3318.7,0.004002]
[1732451709866,6.7397,3318.8,3318.7,0.004002]
[1732451710701,5.9856,3318.8,3318.7,0.004002]
[1732451711854,5.9856,3318.8,3318.7,3.017222]
[1732451712050,5.9856,3318.8,3318.7,0.004002]
[1732451712390,5.9856,3318.8,3318.7,3.017222]
[1732451713192,5.9499,3318.8,3318.7,3.017222]
[1732451713361,5.9499,3318.8,3318.7,0.004002]
[1732451713560,5.9499,3318.8,3318.7,3.017222]
[1732451714749,5.9499,3318.8,3318.7,0.004002]
[1732451715393,8.96303,3318.8,3318.7,0.004002]
[1732451716258,5.9141,3318.8,3318.7,0.004002]
[1732451716460,5.9141,3318.8,3318.7,3.017222]
[1732451716701,5.9141,3318.8,3318.7,3.3189442]
[1732451717367,5.9141,3318.8,3318.7,3.017222]
[1732451718101,5.9141,3318.8,3318.7,0.004002]
[1732451718259,5.9141,3318.8,3318.7,3.017222]
[1732451718584,1.36234609,3318.8,3318.7,6.816422]
[1732451718759,0.43920286,3320.9,3319.9,3.01208]
[1732451718959,39.0,3321.1,3320.9,3.01122]
[1732451719274,0.7541,3321.7,3321.3,3.01078]
[1732451719477,0.7541,3322.5,3321.8,3.01032]
[1732451719673,0.7541,3322.5,3321.8,3.01039]
[1732451719876,39.0,3322.6,3321.9,3.01025]
[1732451720081,3.00941,3322.9,3321.9,3.01025]
[1732451720304,0.7541,3323.0,3321.8,3.01037]
[1732451720499,0.7541,3323.0,3321.7,0.7992]
[1732451720500,3.00973,3322.6,3321.7,0.7992]
[1732451720777,3.01045,3321.8,3320.3,0.7992]
[1732451720980,3.01048,3321.8,3320.7,3.0114]
[1732451721272,3.76443,3321.9,3320.9,2.71003]
[1732451721488,8.8537545,3322.7,3320.3,0.7992]
[1732451721489,3.00991,3322.4,3321.3,2.70971]
[1732451721692,3.0093,3323.1,3322.0,2.70913]
[1732451721693,0.7541,3322.5,3322.0,2.70913]
[1732451721899,39.0,3323.2,3322.3,2.7089]
[1732451721900,0.7541,3323.0,3322.3,2.7089]
[1732451722074,0.7541,3323.7,3322.4,2.70881]
[1732451722415,0.7541,3323.7,3321.5,0.7992]
[1732451722416,3.00933,3323.0,3321.5,0.7992]
[1732451722704,8.8537545,3323.6,3321.0,0.7992]
[1732451722705,8.8537545,3322.9,3321.0,0.7992]
[1732451723016,0.7541,3323.2,3321.2,0.7992]
[1732451723225,0.7541,3323.2,3321.1,0.58010665]
[1732451723226,3.00907,3323.3,3322.3,2.70892]
[1732451723506,3.00894,3323.5,3322.5,2.70878]
[1732451723718,0.8338,3323.7,3322.5,0.8316]
[1732451723869,0.8338,3323.7,3322.8,2.70851]
[1732451724064,0.8338,3323.7,3322.5,0.8316]
[1732451724303,0.8338,3324.3,3322.9,2.70839]
[1732451724508,3.00844,3324.0,3322.9,2.70839]
[1732451724717,3.00824,3324.2,3322.5,0.8316]
[1732451725018,0.8338,3324.3,3323.5,2.70792]
[1732451725369,3.00772,3324.8,3323.8,2.70771]
[1732451725514,9.84214997,3325.0,3323.6,0.8316]
[1732451725719,9.84214997,3325.0,3324.2,2.70741]
[1732451725720,9.6875545,3325.0,3324.2,2.70741]
[1732451725922,9.6875545,3325.0,3323.7,2.70781]
[1732451725923,3.0076,3324.9,3323.7,2.70781]
[1732451726074,9.6875545,3325.0,3323.6,0.8316]
[1732451726274,0.8338,3324.0,3323.1,3.53984]
[1732451726479,0.8338,3324.0,3323.2,2.70815]
[1732451727017,3.00807,3324.4,3323.1,0.8616915]
[1732451727230,3.8338,3324.6,3323.8,2.70773]
[1732451727378,0.8338,3325.2,3324.1,2.70742]
[1732451727723,3.84115,3325.2,3324.1,3.53902]
[1732451728018,3.84115,3325.2,3323.0,2.80833]
[1732451728019,0.8338,3325.2,3323.7,2.70779]
[1732451728219,3.00788,3324.7,3323.5,2.70796]
[1732451728381,0.7785,3325.2,3323.4,0.8316]
[1732451728382,3.00816,3324.3,3323.4,0.8316]
[1732451728716,3.00841,3324.1,3322.8,2.70852]
[1732451728879,9.016,3324.6,3322.7,0.8316]
[1732451728880,3.0087,3323.7,3322.7,0.8316]
[1732451729086,9.016,3324.6,3321.9,2.70926]
[1732451729087,14.8625345,3323.6,3322.2,0.8316]
[1732451729286,14.8625345,3323.6,3321.0,0.59277024]
[1732451729287,14.8697545,3323.5,3321.7,2.70938]
[1732451729514,3.00979,3322.5,3321.5,3.54114]
[1732451729728,3.00961,3322.7,3321.5,0.8316]
[1732451729898,2.88091,3322.7,3321.7,2.70938]
[1732451730104,8.8537545,3322.6,3321.0,2.70994]
[1732451730307,8.8537545,3322.6,3320.8,0.8316]
[1732451730529,6.016,3322.5,3321.9,0.8316]
[1732451730696,6.016,3322.5,3321.1,0.8316]
[1732451730892,6.016,3322.5,3322.1,0.8316]
[1732451731131,6.016,3322.5,3322.4,2.70888]
[1732451732392,3.00791,3324.6,3323.6,2.7079]
[1732451732593,39.8338,3324.8,3323.0,0.8316]
[1732451732594,3.00779,3324.7,3323.0,0.8316]
[1732451732851,0.07702891,3324.5,3323.8,2.70773]
[1732451733005,0.07703589,3324.6,3323.9,2.70764]
[1732451733205,0.07703589,3324.6,3323.1,0.03008631]
[1732451733206,3.84105,3325.3,3323.4,0.8316]
[1732451733445,0.02703589,3324.5,3323.5,2.70794]
[1732451733729,0.07536923,3324.4,3324.3,2.70733]
[1732451733933,0.0300834,3325.2,3323.8,5.41548]
[1732451734136,3.0374434,3325.2,3324.0,2.70758]
[1732451734309,3.08281923,3325.1,3324.2,2.70734]
[1732451734633,3.08281923,3325.1,3323.2,3.0]
[1732451734634,3.0376034,3325.0,3323.8,2.70773]
[1732451734936,0.55,3324.8,3323.3,2.70814]
[1732451735135,0.55,3324.8,3323.0,2.70837]
[1732451735136,3.00806,3324.4,3323.0,2.70837]
[1732451735296,8.8838379,3324.3,3323.4,2.70805]
[1732451735492,3.0383334,3324.2,3322.5,0.03009126]
[1732451735698,0.0300834,3324.2,3323.4,2.70799]
[1732451736036,0.07536923,3324.1,3323.0,2.70833]
[1732451736197,0.07536923,3324.1,3321.9,0.1]
[1732451736198,0.0300834,3324.0,3322.2,2.70904]
[1732451736398,0.07536923,3323.9,3323.5,3.53952]
[1732451736604,0.07536923,3323.9,3323.5,3.53958]
[1732451736831,3.0,3324.5,3323.5,3.53956]
[1732451736832,0.07536923,3323.8,3323.5,3.53956]
[1732451737137,0.0300834,3324.5,3323.5,3.53956]
[1732451737298,0.07536923,3323.7,3323.6,2.7079]
[1732451737505,3.00806,3324.4,3323.6,2.70789]
[1732451737724,0.07536923,3323.7,3323.1,2.70824]
[1732451737936,0.0300834,3323.9,3323.2,2.70817]
[1732451738105,3.08418923,3323.6,3322.6,2.70864]
[1732451738309,0.0300834,3323.5,3322.0,0.8616931]
[1732451738510,0.55,3323.4,3322.0,0.8316]
[1732451738724,3.00978,3322.5,3321.4,0.8316]
[1732451738927,0.0300834,3322.4,3321.4,0.8316]
[1732451739131,0.8338,3322.8,3321.5,2.70961]
[1732451739368,0.8338,3322.8,3321.4,0.8316]
[1732451739369,0.07536923,3322.3,3321.4,3.54129]
[1732451739634,0.8338,3322.8,3321.4,0.8316]
[1732451739635,3.11555263,3322.2,3321.4,0.8316]
[1732451739843,0.10545263,3322.2,3321.4,0.8316]
[1732451740150,0.07536923,3322.2,3321.6,2.70952]
[1732451740627,0.0300834,3322.7,3321.4,3.54122]
[1732451740832,0.07536923,3322.1,3321.4,3.54129]
[1732451741014,0.07494671,3322.0,3321.4,0.8316]
[1732451741742,3.00989,3322.4,3321.6,2.70953]
[1732451741941,0.07486637,3321.9,3321.6,2.70947]
[1732451742151,0.0300834,3322.6,3321.4,0.8316]
[1732451742318,3.00978,3322.5,3320.9,0.8316]
[1732451742504,3.01002,3322.3,3321.4,2.70968]
[1732451742708,0.1047227,3322.4,3321.4,2.70968]
[1732451742947,0.0746428,3322.2,3321.4,2.70968]
[1732451743241,0.0300834,3322.5,3321.0,0.03010407]
[1732451743403,0.0746428,3322.1,3322.0,2.70921]
[1732451743605,0.8338,3323.3,3322.5,2.70879]
[1732451743804,0.0746428,3323.2,3322.5,2.70879]
[1732451744026,3.00923,3323.1,3321.9,0.86169645]
[1732451744222,3.00949,3322.9,3322.1,2.70912]
[1732451744517,3.0095,3322.9,3322.0,2.7092]
[1732451744720,3.1143162,3322.8,3321.9,0.8316]
[1732451745038,3.1143162,3322.8,3321.5,0.03009995]
[1732451745039,0.0746428,3322.8,3321.5,0.03009995]
[1732451745213,3.00976,3322.6,3321.7,2.70943]
[1732451745607,3.0844228,3322.5,3321.4,3.59889]
[1732451745808,3.0844228,3322.5,3321.5,0.22219903]
[1732451745809,3.00989,3322.4,3321.5,0.22219903]
[1732451746044,0.0746428,3322.5,3321.5,0.03010304]
[1732451746259,3.00972,3322.6,3321.7,2.70938]
[1732451746457,0.0746428,3322.4,3321.6,0.22221055]
[1732451746610,0.0746428,3322.3,3321.7,2.70941]
[1732451746810,0.0746428,3322.3,3321.4,0.8892]
[1732451746811,0.0300834,3322.2,3321.4,0.8734465]
[1732451747134,0.0300834,3322.2,3320.4,0.03010475]
[1732451747135,0.0746428,3322.1,3320.4,0.03010475]
[1732451747335,0.0746428,3322.1,3320.5,2.93335292]
[1732451747336,3.01078,3321.4,3320.5,2.93335292]
[1732451747552,0.0300834,3321.3,3320.6,2.93326292]
[1732451747711,0.1047262,3321.3,3320.7,0.22298292]
[1732451747908,3.01056,3321.7,3320.8,0.22298292]
[1732451748238,8.8537545,3322.2,3321.0,2.70999]
[1732451748239,0.0746428,3321.6,3321.0,2.70999]
[1732451748407,8.8537545,3322.2,3320.9,0.25309481]
[1732451748408,8.8537545,3322.2,3321.1,0.22343646]
[1732451748614,3.01093,3321.3,3320.4,2.71048]
[1732451748811,3.01069,3321.5,3320.7,2.71025]
[1732451749018,0.07456943,3321.2,3320.8,0.22345589]
[1732451749219,0.07456943,3321.2,3318.8,2.91175]
[1732451749220,3.01166,3320.5,3319.4,2.71131]
[1732451749553,4.00564283,3320.4,3319.2,2.71142]
[1732451749755,3.01213,3320.0,3318.9,0.8892]
[1732451749921,0.99395283,3320.4,3318.9,0.8892]
[1732451749922,3.01217,3319.9,3318.9,0.8892]
[1732451750122,3.01178,3320.3,3319.1,2.7115]
[1732451750345,0.07435974,3319.8,3318.9,0.8892]
[1732451750507,3.0419434,3320.2,3319.1,2.71157]
[1732451750709,3.08673974,3319.7,3318.9,0.8892]
[1732451750959,0.0300834,3320.2,3318.9,0.8892]
[1732451751255,3.08662998,3319.6,3318.9,0.8892]
[1732451751431,3.01248,3319.6,3318.9,0.8892]
[1732451751635,3.0423134,3319.8,3318.9,0.8892]
[1732451751636,0.07414998,3319.5,3318.9,0.8892]
[1732451751835,0.07414998,3319.5,3319.1,2.71151]
[1732451752053,0.07414998,3319.5,3319.3,2.71135]
[1732451752365,0.07414998,3319.4,3319.1,2.71151]
[1732451752570,9.7430545,3320.4,3319.2,2.74156522]
[1732451752734,8.8537545,3320.4,3319.6,2.71111]
[1732451753074,3.01197,3320.1,3319.3,2.7114]
[1732451753221,0.07073304,3320.3,3318.9,0.8892]
[1732451753425,8.8537545,3320.6,3318.9,4.02033645]
[1732451753726,3.01175,3320.4,3319.5,2.71123]
[1732451753925,3.0416734,3320.5,3319.3,2.71141]
[1732451753926,6.0542834,3320.3,3319.3,2.71135]
[1732451754170,9.0660634,3320.3,3318.9,0.91932378]
[1732451754368,0.07073304,3320.2,3319.0,2.71166]
[1732451754663,6.0242,3320.1,3319.1,2.74169376]
[1732451754879,6.0242,3320.1,3319.6,2.71112]
[1732451755033,0.07073304,3320.0,3319.5,2.7112]
[1732451755414,0.07073304,3320.0,3319.6,2.71115]
[1732451755572,0.07073304,3320.0,3319.5,2.71123]
[1732451755772,0.07073304,3320.0,3319.9,2.71092]
[1732451755930,0.07073304,3320.0,3319.9,3.53282]
[1732451756267,0.9193834,3320.9,3319.9,3.53282]
[1732451756574,3.01153,3320.6,3319.7,2.71108]
[1732451756787,3.01153,3320.6,3319.5,0.8219]
[1732451756788,0.0300834,3320.6,3319.5,0.8219]
[1732451757078,3.01195,3320.1,3319.5,0.8219]
[1732451757279,0.07073304,3320.0,3319.5,2.71125]
[1732451757486,0.10081644,3320.0,3319.1,3.53347]
[1732451757785,3.01233,3319.7,3319.1,0.8219]
[1732451758081,0.0300834,3319.6,3319.1,3.53346]
[1732451758281,3.01223,3319.8,3319.1,2.71156]
[1732451758492,3.01257,3319.5,3318.7,0.004002]
[1732451758782,3.01235,3319.7,3318.7,0.004002]
[1732451758783,3.01242,3319.6,3318.9,2.71173]
[1732451759090,3.01232,3319.7,3319.0,2.71165]
[1732451759301,3.01218,3319.9,3318.9,2.71169]
[1732451759441,3.01213,3319.9,3318.7,0.03412981]
[1732451759647,0.07073304,3319.8,3318.7,3.02063279]
[1732451759990,0.07073304,3319.8,3319.4,2.71126]
[1732451760147,0.824,3320.0,3319.3,2.71133]
[1732451760348,0.824,3320.0,3319.4,2.71132]
[1732451760653,0.07065592,3319.9,3319.6,2.71114]
[1732451760875,0.07065592,3319.9,3319.4,2.71132]
[1732451761045,0.0300834,3320.1,3319.4,2.71132]
[1732451761258,3.01194,3320.2,3319.4,2.71131]
[1732451761458,3.01194,3320.2,3319.2,2.71148]
[1732451761459,0.07065943,3320.1,3319.2,2.71148]
[1732451761788,0.07065943,3320.1,3319.4,2.71126]
[1732451762149,0.0300834,3320.0,3319.4,2.71126]
[1732451762349,0.07065943,3320.1,3319.4,2.71126]
[1732451762552,3.8657434,3320.5,3319.1,4.0]
[1732451762747,0.07065943,3320.0,3319.1,4.48219]
[1732451762975,0.8540834,3320.5,3319.1,6.71155]
[1732451763183,3.01221,3319.9,3319.1,6.71155]
[1732451763348,3.01241,3319.6,3319.1,4.0]
[1732451763547,0.0300834,3319.5,3319.1,4.0]
[1732451763750,0.07070851,3319.5,3319.1,4.0]
[1732451764076,0.0300834,3319.7,3319.1,4.0]
[1732451764077,3.0424034,3319.7,3319.1,4.0]
[1732451764281,0.0300834,3319.7,3319.1,4.0]
[1732451764459,3.01277,3319.2,3319.1,4.0]
[1732451764666,3.01313,3318.8,3318.7,0.004002]
[1732451764846,3.0836597,3318.8,3318.7,0.004002]
[1732451765067,3.1137431,3318.8,3318.7,0.004002]
[1732451765395,3.9597431,3318.8,3318.7,0.004002]
[1732451765570,3.9296597,3318.8,3318.7,0.004002]
[1732451766176,7.4796597,3318.8,3318.7,0.004002]
[1732451766700,3.85968,3318.2,3318.1,4.0]
[1732451766901,6.92985895,3318.2,3318.1,4.0]
[1732451767322,3.0144,3317.5,3317.1,0.005]
[1732451767464,3.01443,3317.4,3317.1,4.005]
[1732451767661,0.0300834,3317.9,3317.1,4.005]
[1732451767662,3.08473895,3317.3,3317.1,4.005]
[1732451767958,0.07017895,3317.3,3317.1,4.005]
[1732451768163,3.01455,3317.3,3317.1,4.005]
[1732451768491,3.08466017,3317.2,3317.1,4.005]
[1732451768864,3.93066017,3317.2,3317.1,4.005]
[1732451769274,3.93066017,3317.2,3317.1,0.005]
[1732451769598,4.48066017,3317.2,3317.1,0.005]
[1732451769803,7.48066017,3317.2,3317.1,0.005]
[1732451770175,16.33441467,3317.2,3317.1,0.005]
[1732451770457,3.01588,3315.8,3315.5,0.005]
[1732451770568,3.01595,3315.7,3315.6,4.0]
[1732451770772,3.0847605,3315.7,3315.6,4.0]
[1732451771792,3.86204,3315.6,3315.5,0.005]
[1732451772125,3.9607548,3315.6,3315.5,0.005]
[1732451772900,6.9607548,3315.6,3315.5,0.005]
[1732451773102,0.0686314,3315.6,3315.5,0.005]
[1732451773306,0.0300834,3316.6,3315.7,2.71435]
[1732451773512,3.37,3317.8,3315.5,0.005]
[1732451773513,3.0446734,3317.2,3316.1,0.8999]
[1732451773818,0.06541188,3317.1,3316.1,0.8999]
[1732451773975,0.06541188,3317.1,3315.5,0.03515146]
[1732451773976,0.9258,3317.0,3315.5,0.03515146]
[1732451774191,0.0300834,3316.9,3315.5,0.27997515]
[1732451774397,0.9258,3315.9,3315.6,4.0]
[1732451774702,3.01095,3315.7,3315.6,4.0]
[1732451774904,3.07659777,3315.7,3315.6,4.0]
[1732451775091,0.06564777,3315.7,3315.6,4.0]
[1732451775290,0.9258,3316.5,3315.6,4.4005]
[1732451775504,0.06375557,3316.4,3315.6,4.0]
[1732451775704,0.0300834,3316.7,3315.6,4.0]
[1732451776012,0.06373441,3316.6,3315.6,4.0]
[1732451776193,0.06373441,3316.6,3315.5,0.005]
[1732451776194,3.01595,3315.7,3315.5,0.005]
[1732451776399,3.0461234,3315.6,3315.5,0.005]
[1732451776834,0.06373441,3315.6,3315.5,0.005]
[1732451777033,3.01604,3315.6,3315.5,0.005]
[1732451777240,3.07977441,3315.6,3315.5,0.005]
[1732451777545,3.10985781,3315.6,3315.5,0.005]
[1732451779317,3.65985781,3315.6,3315.5,0.005]
[1732451779513,3.10985781,3315.6,3315.5,0.005]
[1732451779817,0.06373441,3315.6,3315.5,0.005]
[1732451779999,0.09381781,3315.6,3315.5,0.005]
[1732451780200,3.0461234,3315.6,3315.5,0.005]
[1732451780441,3.10954739,3315.6,3315.5,0.005]
[1732451780631,3.65954739,3315.6,3315.5,0.005]
[1732451780940,7.58534739,3315.6,3315.5,0.005]
[1732451781095,7.55526399,3315.6,3315.5,0.005]
[1732451781296,16.40901849,3315.6,3315.5,0.005]
[1732451781501,22.44121849,3315.6,3315.5,0.005]
[1732451782681,18.87517849,3315.6,3315.5,0.005]
[1732451782848,20.96541849,3315.6,3315.5,0.005]
[1732451783170,21.51541849,3315.6,3315.5,0.005]
[1732451783732,22.40271849,3315.6,3315.5,0.005]
[1732451783932,22.40271849,3315.6,3314.5,0.025]
[1732451783933,3.01692,3314.7,3314.5,0.025]
[1732451784135,4.51751519,3314.6,3314.5,0.025]
[1732451784336,22.40346969,3314.6,3314.5,0.025]
[1732451784546,21.85346969,3314.6,3314.5,0.025]
[1732451784772,3.55,3314.5,3313.3,0.1477655]
[1732451785073,0.8873,3313.5,3313.3,0.1477655]
[1732451785274,6.0622834,3313.4,3313.3,0.1477655]
[1732451785441,6.09546519,3313.4,3313.3,0.1477655]
[1732451785648,6.12554859,3313.4,3313.3,0.1477655]
[1732451785851,12.14358859,3313.4,3313.3,0.1477655]
[1732451786158,9.66350519,3313.4,3313.3,0.1477655]
[1732451786378,9.11350519,3313.4,3313.3,0.1477655]
[1732451786580,12.66350519,3313.4,3313.3,0.1477655]
[1732451786737,7.4555,3313.3,3312.6,0.00462651]
[1732451786940,4.45598,3312.7,3312.6,0.00462651]
[1732451787247,9.9682634,3312.7,3312.6,0.00462651]
[1732451787452,13.55061236,3312.7,3312.6,0.00462651]
[1732451787647,22.40436686,3312.7,3312.6,0.00462651]
[1732451787846,13.55061236,3312.7,3312.6,0.00462651]
[1732451788284,0.55,3312.2,3312.0,0.00282685]
[1732451788464,7.4995834,3312.1,3312.0,0.00282685]
[1732451788669,7.4695,3312.1,3312.0,0.00282685]
[1732451788973,7.53193236,3312.1,3312.0,0.00282685]
[1732451789767,19.40491686,3312.1,3312.0,0.00282685]
[1732451790339,22.60491686,3312.1,3312.0,0.00282685]
[1732451790574,23.0032655,3312.1,3312.0,0.00282685]
[1732451790787,23.0032655,3312.1,3310.8,0.09311311]
[1732451790788,22.47424028,3312.1,3310.8,0.09311311]
[1732451790951,0.55,3311.2,3310.8,0.09311311]
[1732451791150,6.08828957,3311.1,3311.0,2.71821]
[1732451791352,9.57e-06,3311.1,3311.0,2.81821]
[1732451791571,0.0300834,3312.3,3312.2,2.71722]
[1732451791752,0.0300834,3312.3,3312.0,2.71733]
[1732451791753,4.17611986,3313.1,3311.7,2.71756]
[1732451791971,0.05395817,3312.3,3312.1,2.71726]
[1732451792185,0.0300834,3312.8,3311.6,0.889]
[1732451792343,6.0383,3312.7,3311.5,0.1]
[1732451792536,6.0383,3312.7,3311.3,2.81788]
[1732451792537,0.08440004,3312.6,3311.3,2.81788]
[1732451792783,0.08440004,3312.6,3311.1,1.170821]
[1732451792784,3.01924,3312.1,3311.1,2.81812]
[1732451793005,0.0300834,3312.0,3311.2,4.0]
[1732451793175,6.9256,3311.9,3311.2,1.97022676]
[1732451793378,3.90726,3311.3,3311.2,1.97022676]
[1732451793676,3.0,3311.6,3310.8,0.09311311]
[1732451793884,0.05424922,3311.3,3310.8,0.19311311]
[1732451794035,6.0683834,3311.5,3311.4,2.81788]
[1732451794036,6.0383,3311.5,3311.4,2.81788]
[1732451794237,0.0300834,3312.3,3311.9,2.71747]
[1732451794443,0.00358254,3312.4,3311.9,0.1]
[1732451794680,0.03366594,3312.4,3311.6,0.1]
[1732451794985,0.03366594,3312.4,3310.1,2.81891]
[1732451794986,3.01905,3312.3,3311.1,0.1]
[1732451795187,3.01905,3312.3,3310.7,0.889]
[1732451795188,0.8873,3311.6,3310.7,0.889]
[1732451795347,0.0300834,3311.5,3310.6,0.1]
[1732451795684,6.0392,3311.4,3310.4,2.71867]
[1732451795900,0.0300834,3311.3,3310.9,2.71827]
[1732451796193,6.0392,3311.4,3310.7,2.71845]
[1732451796342,8.8537545,3311.9,3311.0,2.81819]
[1732451796343,6.0392,3311.2,3311.0,2.81819]
[1732451796541,6.0392,3311.2,3310.9,2.71823]
[1732451796758,0.06849167,3311.1,3311.0,0.1]
[1732451796963,0.06849167,3311.1,3311.0,2.81821]
[1732451797168,0.06849167,3311.1,3311.0,2.71821]
[1732451797359,0.06849167,3311.1,3310.8,0.09311311]
[1732451797577,0.0300834,3311.0,3310.8,0.09311311]
[1732451797805,6.10763123,3310.9,3310.8,0.09311311]
[1732451798306,6.10763123,3310.9,3310.8,2.91148311]
[1732451799694,6.10763123,3310.9,3310.8,0.09311311]
[1732451800067,6.16188045,3310.9,3310.8,0.09311311]
[1732451800742,9.21228385,3310.9,3310.8,0.09311311]
[1732451800901,6.16188045,3310.9,3310.8,0.09311311]
[1732451801241,9.21228385,3310.9,3310.8,0.09311311]
[1732451801397,9.73220045,3310.9,3310.8,0.09311311]
[1732451801808,3.02085,3310.4,3309.9,0.1477655]
[1732451802009,0.8873,3310.2,3309.9,0.1477655]
[1732451802253,6.0392,3310.1,3309.9,0.1477655]
[1732451802536,0.05375934,3310.0,3309.9,0.1477655]
[1732451802738,6.09295934,3310.0,3309.9,0.1477655]
[1732451803045,6.09295934,3310.0,3309.9,2.8668755]
[1732451803347,0.04870469,3310.0,3309.9,4.32598405]
[1732451803527,9.34e-06,3310.0,3309.9,4.35619256]
[1732451803732,9.34e-06,3310.0,3309.9,8.32598405]
[1732451804036,0.0300834,3311.5,3310.5,0.1]
[1732451804201,3.01996,3311.3,3310.4,0.1]
[1732451804418,0.0300834,3311.2,3310.8,0.1]
[1732451804833,0.04892676,3311.1,3310.6,0.1]
[1732451805030,6.08942676,3311.1,3310.8,0.1]
[1732451805352,6.08942676,3311.1,3311.0,0.1]
[1732451805660,6.08942676,3311.1,3311.0,2.81821]
[1732451805661,0.04892676,3311.1,3311.0,2.81821]
[1732451805868,0.04892676,3311.1,3311.0,0.1]
[1732451806182,0.0300834,3312.0,3310.8,0.1]
[1732451806183,0.0300834,3311.7,3310.8,0.1]
[1732451806458,0.9007,3311.2,3310.1,0.1]
[1732451806655,6.0411,3311.1,3311.0,0.1]
[1732451806842,6.0411,3311.1,3311.0,2.81821]
[1732451807049,6.09002676,3311.1,3311.0,2.81821]
[1732451807247,6.09002676,3311.1,3311.0,3.371859]
[1732451807633,6.76e-06,3311.1,3311.0,4.262359]
[1732451807957,0.03366594,3312.4,3311.7,0.1]
[1732451807958,3.0491334,3312.3,3311.7,0.1]
[1732451808158,3.0491334,3312.3,3311.3,2.71795]
[1732451808159,3.01923,3312.1,3311.8,0.1]